bitfinex-derivatives/quotes_BTCF0:USTF0_20251002
["timestamp","ask_amount","ask_price","bid_price","bid_amount"]
[1759435456368,1.07109197,120920.0,120910.0,0.1192683]
[1759435456568,1.38846394,120920.0,120910.0,0.1192683]
[1759435456867,1.41013027,120920.0,120910.0,0.1192683]
[1759435457071,0.3390383,120920.0,120910.0,0.1192683]
[1759435457270,0.31737197,120930.0,120920.0,0.1192615]
[1759435457563,0.33900044,120930.0,120920.0,1.55111347]
[1759435457767,0.02225436,120950.0,120940.0,0.1192478]
[1759435457963,0.33962633,120950.0,120940.0,0.1192478]
[1759435458267,0.33900201,120950.0,120940.0,0.1192478]
[1759435458767,0.33900201,120950.0,120940.0,0.03662]
[1759435458768,0.42162301,120950.0,120940.0,0.03662]
[1759435459069,1.52204934,120950.0,120940.0,0.79026]
[1759435459268,1.90526027,120950.0,120930.0,0.01361]
[1759435459567,1.71291591,120940.0,120920.0,0.0962511]
[1759435459768,0.31737197,120930.0,120920.0,0.1192611]
[1759435460269,0.99554394,120930.0,120920.0,0.03662]
[1759435460569,0.67817197,120930.0,120920.0,0.1192615]
[1759435461264,0.31737197,120930.0,120920.0,0.1192615]
[1759435461569,1.43177197,120940.0,120930.0,0.0826346]
[1759435461770,1.77092185,120940.0,120930.0,0.1192546]
[1759435462572,1.13617791,120940.0,120930.0,0.43662657]
[1759435462873,1.45354988,120940.0,120930.0,0.43662657]
[1759435463973,1.45354988,120940.0,120930.0,0.1192546]
[1759435464175,1.45354988,120940.0,120930.0,0.43662657]
[1759435464671,1.13617791,120940.0,120930.0,0.43662657]
[1759435464976,1.45354988,120940.0,120930.0,0.43662657]
[1759435465775,0.69994988,120940.0,120930.0,0.43662657]
[1759435467574,1.73469382,120940.0,120930.0,0.01361]
[1759435467778,1.41732185,120940.0,120920.0,0.759368]
[1759435467967,0.31737197,120930.0,120920.0,0.096248]
[1759435468170,0.31737197,120930.0,120920.0,0.118938]
[1759435468371,0.67817197,120930.0,120920.0,0.118938]
[1759435469174,0.67817197,120930.0,120920.0,0.096248]
[1759435469480,0.67817197,120930.0,120920.0,0.118938]
[1759435472185,0.31737197,120930.0,120920.0,0.118938]
[1759435472377,0.31737197,120930.0,120920.0,0.43630997]
[1759435473579,0.31737197,120930.0,120920.0,0.79710997]
[1759435473881,0.31737197,120930.0,120920.0,1.55058997]
[1759435475485,0.31737197,120930.0,120920.0,1.86796194]
[1759435475686,0.67817197,120940.0,120930.0,0.1185746]
[1759435475889,0.67817197,120940.0,120930.0,0.43594657]
[1759435476186,0.99554394,120940.0,120930.0,0.1185746]
[1759435477390,0.3608,120940.0,120930.0,0.1185746]
[1759435477586,0.99554394,120940.0,120930.0,0.1185746]
[1759435488204,0.3608,120940.0,120930.0,0.1185746]
[1759435488406,0.99554394,120940.0,120930.0,0.1185746]
[1759435488605,0.3608,120940.0,120930.0,0.1185746]
[1759435488803,0.99554394,120940.0,120930.0,0.1185746]
[1759435489899,0.63474394,120940.0,120930.0,0.1185746]
[1759435490097,0.99554394,120940.0,120930.0,0.1185746]
[1759435490807,0.99554394,120940.0,120930.0,0.0958846]
[1759435491702,0.99554394,120940.0,120930.0,0.0826346]
[1759435491901,1.72941712,120940.0,120920.0,0.0962455]
[1759435492100,1.74894394,120930.0,120920.0,0.0962455]
[1759435492300,1.74869972,120930.0,120920.0,0.0962455]
[1759435492500,0.0826415,120920.0,120910.0,0.0962556]
[1759435492706,0.76069136,120920.0,120910.0,0.1189456]
[1759435493711,0.76069136,120920.0,120910.0,0.0363]
[1759435493914,0.76069136,120920.0,120910.0,0.1189483]
[1759435494710,0.76896318,120920.0,120910.0,0.1189483]
[1759435495007,0.76069136,120920.0,120910.0,0.1189483]
[1759435495404,0.76069136,120920.0,120910.0,0.01361]
[1759435495710,0.0826483,120910.0,120900.0,0.1182307]
[1759435495909,1.51409816,120910.0,120900.0,0.1182307]
[1759435496106,0.7534,120910.0,120900.0,0.43548056]
[1759435496312,1.1968434,120920.0,120910.0,0.1183983]
[1759435496808,1.51409326,120920.0,120910.0,0.1183983]
[1759435497012,1.07064986,120920.0,120910.0,0.4791983]
[1759435497816,0.7534,120920.0,120910.0,0.79644816]
[1759435498109,0.7534,120920.0,120910.0,0.4791983]
[1759435498309,1.07064986,120920.0,120910.0,0.4791983]
[1759435498904,1.07064986,120920.0,120910.0,0.1183983]
[1759435499211,1.07064986,120920.0,120910.0,0.4791983]
[1759435499502,1.07064986,120920.0,120910.0,0.1183983]
[1759435500097,0.36912711,120930.0,120920.0,0.1183915]
[1759435500098,0.4434357,120930.0,120920.0,0.1183915]
[1759435500303,1.51412556,120930.0,120920.0,0.1183915]
[1759435500806,1.07068986,120930.0,120920.0,0.1183915]
[1759435501013,1.15332446,120930.0,120920.0,0.1183915]
[1759435501307,0.39987956,120940.0,120930.0,0.0826346]
[1759435501610,0.76067426,120950.0,120940.0,0.1183778]
[1759435501814,1.21875506,120950.0,120940.0,0.1183778]
[1759435502004,1.45338052,120950.0,120940.0,0.1183778]
[1759435502710,0.38269066,120950.0,120940.0,0.1183778]
[1759435502908,1.45338052,120950.0,120940.0,0.1183778]
[1759435503412,0.02189066,120950.0,120940.0,0.1183778]
[1759435504311,0.78256328,120950.0,120940.0,0.01378]
[1759435504503,0.78256328,120950.0,120940.0,0.0964078]
[1759435504808,1.21875342,120950.0,120940.0,0.1183778]
[1759435505010,1.53600328,120950.0,120940.0,0.1183778]
[1759435506017,1.53596328,120950.0,120940.0,0.1183778]
[1759435506816,0.78256328,120950.0,120940.0,0.1183778]
[1759435507014,1.53596328,120950.0,120940.0,0.1183778]
[1759435507511,1.53596328,120950.0,120940.0,0.0964078]
[1759435508214,1.53592328,120950.0,120940.0,0.0964078]
[1759435508815,1.53592328,120950.0,120940.0,0.1183778]
[1759435509820,0.4434193,120960.0,120950.0,0.118371]
[1759435510118,1.53592359,120960.0,120950.0,0.118371]
[1759435510309,1.54410454,120960.0,120950.0,0.118371]
[1759435510510,1.46148524,120960.0,120950.0,0.118371]
[1759435510712,1.52220491,120960.0,120950.0,0.118371]
[1759435511107,0.76884491,120960.0,120950.0,0.118371]
[1759435511308,0.31724986,120960.0,120950.0,0.118371]
[1759435511515,0.76066036,120970.0,120960.0,0.1183641]
[1759435511815,1.53591459,120970.0,120960.0,0.1183641]
[1759435512519,1.54418794,120970.0,120960.0,0.01378]
[1759435512721,1.54418794,120970.0,120960.0,0.0963941]
[1759435512914,1.52229371,120970.0,120960.0,0.0963941]
[1759435514512,0.76066036,120970.0,120960.0,0.1183641]
[1759435514719,1.51398036,120970.0,120960.0,0.1183641]
[1759435515120,1.51398036,120970.0,120960.0,0.0963941]
[1759435516913,1.51398036,120970.0,120960.0,0.01378]
[1759435517115,1.51398036,120970.0,120960.0,0.0963941]
[1759435518417,0.0826141,120960.0,120950.0,0.0963977]
[1759435518626,1.07791382,120960.0,120940.0,0.096402]
[1759435518822,1.43128986,120950.0,120940.0,0.096402]
[1759435519220,0.0826278,120940.0,120930.0,0.11575209]
[1759435519419,0.76067766,120940.0,120930.0,0.11575209]
[1759435519719,1.51391766,120940.0,120930.0,0.11575209]
[1759435519920,1.51391766,120940.0,120930.0,0.13772209]
[1759435520316,0.76067766,120940.0,120930.0,0.13772209]
[1759435520622,1.51391766,120940.0,120930.0,0.13772209]
[1759435521722,0.76067766,120940.0,120930.0,0.13772209]
[1759435522022,1.51391766,120940.0,120930.0,0.13772209]
[1759435522718,0.76067766,120940.0,120930.0,0.13772209]
[1759435522925,1.51395766,120940.0,120930.0,0.13772209]
[1759435524427,1.51395766,120940.0,120930.0,0.11575209]
[1759435524617,1.84773991,120940.0,120930.0,0.01934219]
[1759435524820,2.24773991,120940.0,120930.0,0.01934219]
[1759435525523,0.02183428,120940.0,120930.0,0.9731478]
[1759435525827,0.3608,120980.0,120970.0,0.1195273]
[1759435526026,1.1206,120980.0,120970.0,0.03692]
[1759435526520,0.3608,120980.0,120970.0,0.1195273]
[1759435527023,1.12052,120980.0,120970.0,0.1195273]
[1759435527224,0.3608,120980.0,120970.0,0.1195273]
[1759435527418,0.3608,120980.0,120970.0,0.18616816]
[1759435527821,0.3608,120980.0,120970.0,0.53046272]
[1759435527822,1.12036,120980.0,120970.0,0.53046272]
[1759435528314,0.3608,120980.0,120970.0,0.53046272]
[1759435528519,1.12036,120980.0,120970.0,0.53046272]
[1759435529716,1.12036,120980.0,120970.0,0.18616816]
[1759435529920,0.3608,120980.0,120970.0,0.18616816]
[1759435530121,1.12008,120980.0,120970.0,0.18616816]
[1759435532027,0.3608,120980.0,120970.0,0.18616816]
[1759435532229,1.11984,120980.0,120970.0,0.18616816]
[1759435532530,0.3608,120980.0,120970.0,0.18616816]
[1759435532831,1.11976,120980.0,120970.0,0.18616816]
[1759435534430,1.11976,120980.0,120970.0,0.16297816]
[1759435534622,1.46405456,120980.0,120970.0,0.16297816]
[1759435535230,1.11976,120980.0,120970.0,0.16297816]
[1759435536531,0.3608,120980.0,120970.0,0.16297816]
[1759435536723,1.1194,120980.0,120970.0,0.16297816]
[1759435536920,1.11928,120980.0,120970.0,0.16297816]
[1759435537124,0.7608,120980.0,120970.0,0.16297816]
[1759435537331,1.51924,120980.0,120970.0,0.16297816]
[1759435537532,0.7608,120980.0,120970.0,0.16297816]
[1759435537730,0.7608,120980.0,120960.0,0.0963439]
[1759435537731,1.86353456,120980.0,120960.0,0.0963404]
[1759435538032,0.3608,120970.0,120960.0,0.0963404]
[1759435539633,0.70509456,120970.0,120950.0,0.15565611]
[1759435539834,1.11912,120960.0,120950.0,0.0963472]
[1759435540135,1.2017341,120960.0,120950.0,0.0963472]
[1759435540334,1.2017341,120960.0,120950.0,0.1195372]
[1759435540536,1.2016141,120960.0,120950.0,0.1195372]
[1759435540727,1.2016141,120960.0,120950.0,0.18689624]
[1759435541827,1.2016141,120960.0,120950.0,0.1195372]
[1759435542030,0.082621,120950.0,120940.0,0.15566221]
[1759435542331,0.443421,120950.0,120940.0,0.15566221]
[1759435543322,1.18771556,120950.0,120940.0,0.15566221]
[1759435543731,0.843421,120950.0,120940.0,0.15566221]
[1759435543931,1.601421,120950.0,120940.0,0.15566221]
[1759435544834,1.601501,120950.0,120940.0,0.17885221]
[1759435545426,1.601501,120950.0,120940.0,0.1195433]
[1759435545834,1.201381,120950.0,120940.0,0.1195433]
[1759435546134,1.201381,120950.0,120940.0,0.17885221]
[1759435546339,1.201381,120950.0,120940.0,0.49588157]
[1759435546635,0.3608,120950.0,120940.0,0.83657266]
[1759435546834,1.1194,120950.0,120940.0,0.83657266]
[1759435548331,1.43642936,120950.0,120940.0,0.1195433]
[1759435548538,1.43642936,120950.0,120940.0,0.01373]
[1759435549628,1.43642936,120950.0,120930.0,0.0963621]
[1759435549824,0.67782936,120940.0,120930.0,0.0963621]
[1759435550234,0.3608,120940.0,120930.0,0.0963621]
[1759435550730,1.2021078,120940.0,120930.0,0.0963621]
[1759435550933,1.2019878,120940.0,120930.0,0.1195521]
[1759435552237,1.5984279,120940.0,120930.0,0.1195521]
[1759435553836,1.2019878,120940.0,120930.0,0.1195521]
[1759435554338,0.4434278,120940.0,120930.0,0.1195521]
[1759435554535,1.2017878,120940.0,120930.0,0.1195521]
[1759435555135,0.4434278,120940.0,120930.0,0.1195521]
[1759435555340,1.2015078,120940.0,120930.0,0.1195521]
[1759435556144,0.4434278,120940.0,120930.0,0.1195521]
[1759435556342,1.2015078,120940.0,120930.0,0.1195521]
[1759435556546,1.11876,120940.0,120930.0,0.5159922]
[1759435557331,1.11876,120940.0,120930.0,0.1195521]
[1759435557943,1.2013878,120940.0,120930.0,0.1195521]
[1759435559647,0.0826346,120930.0,120920.0,0.22064064]
[1759435559944,0.8398747,120930.0,120920.0,0.18453173]
[1759435560143,0.3608,120930.0,120920.0,0.11966803]
[1759435560340,1.11844,120930.0,120920.0,0.91610813]
[1759435560945,1.11844,120930.0,120920.0,0.51966803]
[1759435561146,1.11852,120930.0,120920.0,0.51966803]
[1759435561446,0.3608,120930.0,120920.0,0.51966803]
[1759435561643,1.11876,120930.0,120920.0,0.51966803]
[1759435561846,1.11872,120930.0,120920.0,0.91610813]
[1759435562348,0.3608,120930.0,120920.0,0.91610813]
[1759435562547,1.11872,120930.0,120920.0,0.91610813]
[1759435563245,0.3608,120930.0,120920.0,0.91610813]
[1759435563545,0.3608,120940.0,120930.0,0.1194546]
[1759435563747,0.3608,120940.0,120930.0,0.5158947]
[1759435564047,1.11848,120940.0,120930.0,0.5158947]
[1759435564250,0.3608,120940.0,120930.0,0.1194546]
[1759435564449,1.11844,120940.0,120930.0,0.1194546]
[1759435565943,0.4434261,120950.0,120930.0,0.1194546]
[1759435566148,0.443421,120950.0,120940.0,0.5158879]
[1759435566353,1.201221,120950.0,120940.0,0.1194478]
[1759435567346,0.3608,120950.0,120940.0,0.1194478]
[1759435567552,1.11852,120950.0,120940.0,0.1194478]
[1759435570257,1.43557441,120950.0,120940.0,0.43650221]
[1759435573859,0.4608,120960.0,120950.0,0.082621]
[1759435574159,1.21788,120960.0,120950.0,0.75354982]
[1759435574358,1.21788,120960.0,120950.0,0.43649541]
[1759435575060,1.3004941,120960.0,120950.0,0.43649541]
[1759435576562,1.3004941,120960.0,120950.0,0.44469833]
[1759435576760,1.3004941,120960.0,120950.0,0.43649541]
[1759435579263,1.3004941,120960.0,120950.0,0.44493371]
[1759435581458,0.4608,120960.0,120950.0,0.44493371]
[1759435581765,0.1,120960.0,120950.0,0.82129703]
[1759435582061,0.1,120960.0,120950.0,0.50424262]
[1759435582663,0.1,120960.0,120950.0,0.44493371]
[1759435583164,0.1,120960.0,120950.0,0.50420113]
[1759435584364,0.1,120960.0,120950.0,0.57138833]
[1759435584771,0.01611,120960.0,120950.0,0.47138833]
[1759435585266,0.33316441,120960.0,120950.0,0.22851662]
[1759435585565,0.65021882,120960.0,120950.0,0.22851662]
[1759435585862,0.33316441,120960.0,120950.0,0.54557103]
[1759435586766,0.01611,120960.0,120950.0,0.54557103]
[1759435586963,0.33316441,120960.0,120950.0,0.54557103]
[1759435587461,1.09363292,120960.0,120950.0,0.16132942]
[1759435587666,1.09363292,120960.0,120950.0,0.102062]
[1759435587965,0.77657851,120960.0,120950.0,0.41911641]
[1759435588365,1.09363292,120960.0,120950.0,0.41911641]
[1759435590570,1.09363292,120960.0,120950.0,0.102062]
[1759435590771,1.09363292,120960.0,120950.0,0.41911641]
[1759435591561,0.4595241,120960.0,120950.0,0.41911641]
[1759435591757,0.77657851,120960.0,120950.0,0.41911641]
[1759435592866,0.77657851,120960.0,120950.0,0.102062]
[1759435593064,1.09363292,120960.0,120950.0,0.102062]
[1759435594376,0.4595241,120960.0,120950.0,0.102062]
[1759435594765,1.09363292,120960.0,120950.0,0.102062]
[1759435594965,1.09363292,120960.0,120950.0,0.41911641]
[1759435597072,1.84891292,120960.0,120950.0,0.41911641]
[1759435598178,1.84891292,120960.0,120950.0,0.102062]
[1759435599371,1.84891292,120960.0,120950.0,0.019441]
[1759435599576,2.24891292,120960.0,120940.0,0.17060277]
[1759435599772,1.01101882,120950.0,120940.0,0.0962441]
[1759435600073,0.69396441,120950.0,120940.0,0.0962441]
[1759435600274,1.42108882,120950.0,120930.0,0.17060847]
[1759435600574,1.76593882,120940.0,120930.0,0.17060847]
[1759435600778,1.01101882,120940.0,120930.0,0.19211847]
[1759435600967,1.76597882,120940.0,120930.0,0.19211847]
[1759435601168,1.76597882,120940.0,120930.0,0.1177598]
[1759435602372,1.01101882,120940.0,120930.0,0.1177598]
[1759435602675,1.76597882,120940.0,120930.0,0.43481421]
[1759435602878,1.44892441,120940.0,120930.0,0.43481421]
[1759435604173,0.69396441,120940.0,120930.0,0.43481421]
[1759435604377,1.44860441,120940.0,120930.0,0.43481421]
[1759435604580,0.37691,120940.0,120930.0,0.43481421]
[1759435604881,1.44864441,120940.0,120930.0,0.1177598]
[1759435605178,1.44864441,120940.0,120930.0,0.43481421]
[1759435605778,0.69396441,120940.0,120930.0,0.43481421]
[1759435605978,1.44892441,120940.0,120930.0,0.43481421]
[1759435607677,1.44892441,120940.0,120930.0,0.50917288]
[1759435608375,1.13175,120940.0,120930.0,0.50917288]
[1759435608573,0.77087,120940.0,120930.0,0.50917288]
[1759435608778,1.44872441,120940.0,120930.0,0.50917288]
[1759435610679,1.13167,120940.0,120930.0,0.50917288]
[1759435610981,0.77071,120950.0,120940.0,0.1169578]
[1759435611280,0.77071,120950.0,120940.0,0.75106662]
[1759435612080,0.01611,120950.0,120940.0,0.75106662]
[1759435612278,0.33316441,120950.0,120940.0,0.43401221]
[1759435612479,1.08784441,120950.0,120940.0,0.43401221]
[1759435613686,1.08784441,120950.0,120940.0,0.75106662]
[1759435613985,0.77079,120950.0,120940.0,0.75106662]
[1759435614284,0.77079,120950.0,120940.0,0.43398295]
[1759435614484,0.01611,120950.0,120940.0,0.43398295]
[1759435614679,0.77071,120950.0,120940.0,0.43398295]
[1759435615084,0.77071,120950.0,120940.0,0.50834162]
[1759435616384,0.77043,120950.0,120940.0,0.50834162]
[1759435616578,0.01611,120950.0,120940.0,0.50834162]
[1759435616783,0.77039,120950.0,120940.0,0.50834162]
[1759435617487,0.77039,120950.0,120940.0,0.19131647]
[1759435617787,0.77039,120950.0,120940.0,0.50834162]
[1759435617989,0.77035,120950.0,120940.0,0.50834162]
[1759435618187,0.77035,120950.0,120940.0,0.19131647]
[1759435618387,0.77035,120950.0,120940.0,0.50834162]
[1759435619088,0.77035,120950.0,120940.0,0.43398295]
[1759435619488,0.01611,120950.0,120940.0,0.43398295]
[1759435619690,0.77027,120950.0,120940.0,0.43398295]
[1759435620191,0.01611,120950.0,120940.0,0.43398295]
[1759435620388,0.77027,120950.0,120940.0,0.43398295]
[1759435620585,0.01611,120950.0,120940.0,0.43398295]
[1759435620786,0.77027,120950.0,120940.0,0.43398295]
[1759435621190,0.01611,120950.0,120940.0,0.43398295]
[1759435621384,0.77027,120950.0,120940.0,0.43398295]
[1759435622290,0.01611,120950.0,120940.0,0.43398295]
[1759435622487,0.77027,120950.0,120940.0,0.43398295]
[1759435623498,0.01611,120950.0,120940.0,0.43398295]
[1759435623792,0.77027,120950.0,120940.0,0.43398295]
[1759435624195,0.01611,120950.0,120940.0,0.43398295]
[1759435626293,1.13107,120960.0,120950.0,0.119031]
[1759435626494,1.13107,120960.0,120950.0,0.43605615]
[1759435626800,1.13107,120960.0,120950.0,0.119031]
[1759435627595,0.37691,120960.0,120950.0,0.119031]
[1759435627788,0.37691,120960.0,120950.0,0.43605615]
[1759435628292,0.37691,120960.0,120950.0,0.119031]
[1759435628492,0.4595241,120960.0,120950.0,0.43605615]
[1759435630494,0.4434141,120960.0,120950.0,0.43605615]
[1759435630699,0.4595241,120960.0,120950.0,0.43605615]
[1759435631592,0.4595241,120960.0,120950.0,0.119031]
[1759435631786,0.77654925,120960.0,120940.0,0.0954429]
[1759435631991,0.33313515,120950.0,120940.0,0.1184329]
[1759435632297,0.01611,120950.0,120940.0,0.43545805]
[1759435635894,0.01611,120950.0,120940.0,0.50981672]
[1759435638397,0.37691,120960.0,120950.0,0.03641]
[1759435638701,1.2136041,120960.0,120950.0,0.43605615]
[1759435642606,1.2136041,120960.0,120950.0,0.50344162]
[1759435643105,0.4595241,120960.0,120950.0,0.50344162]
[1759435643306,1.2135641,120960.0,120950.0,0.50344162]
[1759435643508,1.2135641,120960.0,120950.0,0.18641647]
[1759435644002,1.2135641,120960.0,120950.0,0.50344162]
[1759435648202,1.53058925,120960.0,120950.0,0.119031]
[1759435653009,0.77654925,120960.0,120950.0,0.119031]
[1759435653215,1.2135241,120960.0,120950.0,0.41105615]
[1759435653408,1.2135241,120960.0,120950.0,0.42370615]
[1759435653815,1.2135241,120960.0,120950.0,0.106681]
[1759435654111,1.2135241,120960.0,120950.0,0.42370615]
[1759435657014,1.2135241,120960.0,120950.0,0.34108515]
[1759435657216,1.2135241,120960.0,120950.0,0.42370615]
[1759435658310,1.2135241,120960.0,120950.0,0.41105615]
[1759435658516,1.2135241,120960.0,120950.0,0.082621]
[1759435659017,1.53054925,120960.0,120950.0,0.082621]
[1759435659212,0.01007,120950.0,120940.0,0.0826272]
[1759435659418,0.1040978,120940.0,120930.0,0.1192026]
[1759435659618,1.53588295,120940.0,120930.0,0.19356127]
[1759435661019,1.54746295,120940.0,120930.0,0.17994127]
[1759435661312,0.03489,120930.0,120920.0,0.0974085]
[1759435661621,0.4649046,120930.0,120920.0,0.11834133]
[1759435661823,1.53588975,120930.0,120920.0,0.43536648]
[1759435662118,1.2188646,120930.0,120920.0,0.11834133]
[1759435663117,1.2188646,120930.0,120920.0,0.10569133]
[1759435663118,1.2322846,120930.0,120920.0,0.10569133]
[1759435663506,1.2322846,120930.0,120920.0,0.02304983]
[1759435663714,1.54930975,120930.0,120920.0,9.983e-05]
[1759435663913,1.54930975,120930.0,120920.0,0.0744585]
[1759435664316,1.54930975,120930.0,120920.0,9.983e-05]
[1759435665115,1.94930975,120930.0,120920.0,9.983e-05]
[1759435668214,1.19534975,120930.0,120920.0,0.08274133]
[1759435668414,1.94934975,120930.0,120920.0,0.10569133]
[1759435669420,1.94934975,120930.0,120920.0,0.02304983]
[1759435671020,1.94938975,120930.0,120920.0,0.02304983]
[1759435671826,1.19534975,120930.0,120920.0,0.02304983]
[1759435672020,1.94934975,120930.0,120920.0,0.02304983]
[1759435672222,1.19534975,120930.0,120920.0,0.02304983]
[1759435672522,1.94934975,120930.0,120920.0,0.02304983]
[1759435673825,1.94934975,120930.0,120920.0,0.10569133]
[1759435674620,1.94938975,120930.0,120920.0,0.10569133]
[1759435675823,1.94934975,120930.0,120920.0,0.10569133]
[1759435676123,1.19534975,120930.0,120920.0,0.10569133]
[1759435676421,1.94951441,120930.0,120920.0,0.42288114]
[1759435677023,1.19551441,120930.0,120920.0,0.42288114]
[1759435677227,1.94951441,120930.0,120920.0,0.42288114]
[1759435677518,1.19551441,120930.0,120920.0,0.42288114]
[1759435677722,1.2189046,120930.0,120920.0,0.75279095]
[1759435678112,0.4649046,120930.0,120920.0,0.75279095]
[1759435678318,1.2189046,120930.0,120920.0,0.75279095]
[1759435679025,0.4649046,120930.0,120920.0,0.75279095]
[1759435679328,1.2189046,120930.0,120920.0,0.75279095]
[1759435679625,0.4649046,120930.0,120920.0,0.75279095]
[1759435679927,1.2189046,120930.0,120920.0,0.75279095]
[1759435680625,0.4649046,120930.0,120920.0,0.75279095]
[1759435680825,1.2189046,120930.0,120920.0,0.75279095]
[1759435684531,1.2189046,120930.0,120920.0,0.11841133]
[1759435684732,1.2189046,120930.0,120920.0,0.75279095]
[1759435687436,0.4649046,120930.0,120920.0,0.75279095]
[1759435687830,0.48415151,120940.0,120930.0,0.1163646]
[1759435688029,1.23807151,120940.0,120930.0,0.43355441]
[1759435688431,1.23807151,120940.0,120930.0,0.03373]
[1759435688432,1.55526132,120940.0,120930.0,0.03373]
[1759435688732,1.77031962,120940.0,120920.0,0.1698137]
[1759435688939,0.69920981,120930.0,120920.0,0.1908237]
[1759435689237,0.69920981,120930.0,120920.0,0.43365484]
[1759435690129,0.69920981,120930.0,120920.0,9.983e-05]
[1759435690331,0.69920981,120930.0,120920.0,0.31728964]
[1759435690637,0.69920981,120930.0,120920.0,0.0744585]
[1759435690836,0.69920981,120930.0,120920.0,0.31728964]
[1759435693138,0.69920981,120930.0,120920.0,0.33829964]
[1759435693538,0.69920981,120930.0,120920.0,0.31728964]
[1759435695140,0.69920981,120930.0,120920.0,0.39993114]
[1759435695840,0.69920981,120930.0,120920.0,0.42094114]
[1759435696041,0.69920981,120930.0,120920.0,0.39993114]
[1759435697943,0.38202,120930.0,120920.0,0.42094114]
[1759435698139,0.69920981,120930.0,120920.0,0.42094114]
[1759435698741,1.45304981,120930.0,120920.0,0.42094114]
[1759435698939,0.69920981,120930.0,120920.0,0.42094114]
[1759435699134,0.38202,120930.0,120920.0,0.42094114]
[1759435699331,1.13586,120930.0,120920.0,0.75085095]
[1759435699733,1.45304981,120930.0,120920.0,0.43366114]
[1759435699939,1.53568441,120930.0,120920.0,0.43366114]
[1759435700739,1.53568441,120930.0,120920.0,0.42094114]
[1759435702341,1.53568441,120930.0,120920.0,0.10375133]
[1759435702643,2.25287422,120930.0,120920.0,9.983e-05]
[1759435702846,1.49903422,120930.0,120920.0,9.983e-05]
[1759435703040,1.93564441,120930.0,120920.0,0.02110983]
[1759435703441,1.93564441,120930.0,120920.0,0.33829964]
[1759435703745,1.93564441,120930.0,120920.0,0.02110983]
[1759435704746,1.18184441,120930.0,120920.0,0.02110983]
[1759435704950,1.93564441,120930.0,120920.0,0.33829964]
[1759435705641,1.93564441,120930.0,120920.0,0.02110983]
[1759435705843,1.93564441,120930.0,120920.0,0.33829964]
[1759435706751,1.93564441,120930.0,120920.0,0.42094114]
[1759435709147,1.93564441,120930.0,120920.0,0.10375133]
[1759435712354,1.52102223,120930.0,120920.0,9.983e-05]
[1759435712554,2.25279422,120930.0,120920.0,9.983e-05]
[1759435713856,2.27478373,120930.0,120920.0,9.983e-05]
[1759435714156,2.25279422,120930.0,120920.0,9.983e-05]
[1759435714350,0.4646546,120930.0,120920.0,0.75259095]
[1759435714554,1.53556441,120930.0,120920.0,0.43540114]
[1759435714755,1.2183746,120930.0,120920.0,0.43540114]
[1759435714957,1.2183746,120930.0,120920.0,0.75259095]
[1759435716755,1.53556441,120930.0,120920.0,0.43540114]
[1759435718959,1.53556441,120930.0,120920.0,0.11821133]
[1759435719154,1.53556441,120930.0,120920.0,0.43540114]
[1759435721660,1.2183746,120930.0,120920.0,0.43540114]
[1759435721859,1.53556441,120930.0,120920.0,0.43540114]
[1759435722263,1.53556441,120930.0,120920.0,0.03556983]
[1759435722448,1.53556441,120930.0,120920.0,0.08274133]
[1759435723461,1.85275422,120930.0,120920.0,0.08274133]
[1759435723860,1.53556441,120930.0,120920.0,0.08274133]
[1759435724365,0.78184441,120930.0,120920.0,0.39993114]
[1759435724556,1.53544441,120930.0,120920.0,0.43540114]
[1759435727264,0.4434346,120930.0,120920.0,1.15259095]
[1759435727464,1.11436,120930.0,120920.0,1.46978076]
[1759435727666,0.3608,120930.0,120920.0,1.46978076]
[1759435727867,0.3608,120930.0,120920.0,1.15259095]
[1759435728164,0.38319,120940.0,120930.0,0.1181046]
[1759435728352,1.13675,120940.0,120930.0,0.43529441]
[1759435728952,0.38319,120940.0,120930.0,0.43529441]
[1759435729653,0.38319,120940.0,120930.0,0.75248422]
[1759435730160,0.3608,120940.0,120930.0,1.15248422]
[1759435731061,0.3608,120950.0,120930.0,1.15248422]
[1759435731265,1.13671,120950.0,120940.0,0.75247742]
[1759435732865,1.219331,120950.0,120940.0,0.75247742]
[1759435733966,1.53652081,120950.0,120940.0,0.75247742]
[1759435734360,1.53652081,120950.0,120940.0,0.81932656]
[1759435734957,1.53652081,120950.0,120940.0,0.82741419]
[1759435735364,1.53652081,120950.0,120940.0,0.51022438]
[1759435735967,1.53652081,120950.0,120940.0,0.19303457]
[1759435736167,1.53652081,120950.0,120940.0,0.51022438]
[1759435736370,0.78300081,120950.0,120940.0,0.51022438]
[1759435736668,1.53644081,120950.0,120940.0,0.19303457]
[1759435736868,1.53644081,120950.0,120940.0,0.51022438]
[1759435738273,1.219251,120950.0,120940.0,0.51008686]
[1759435738868,1.219251,120950.0,120940.0,0.50199923]
[1759435739073,1.53630329,120950.0,120940.0,0.18494694]
[1759435740974,0.78286329,120950.0,120940.0,0.18494694]
[1759435741170,1.53618329,120950.0,120940.0,0.18494694]
[1759435741775,1.219131,120950.0,120940.0,0.18494694]
[1759435741968,1.53618329,120950.0,120940.0,0.18494694]
[1759435742171,1.54625329,120950.0,120940.0,0.0826278]
[1759435742675,1.229201,120950.0,120940.0,0.1042578]
[1759435742978,1.54625329,120950.0,120940.0,0.1042578]
[1759435744970,1.54625329,120950.0,120930.0,0.41254199]
[1759435745171,0.38407,120940.0,120930.0,0.43417199]
[1759435748080,0.38407,120940.0,120930.0,1.15122428]
[1759435748281,1.13731,120940.0,120930.0,1.15122428]
[1759435748684,1.2199378,120940.0,120930.0,1.15122428]
[1759435749181,0.4666978,120940.0,120930.0,0.5171197]
[1759435749479,0.4666978,120940.0,120930.0,0.83417199]
[1759435753581,0.4666978,120940.0,120930.0,1.15122428]
[1759435753781,0.4666978,120940.0,120930.0,0.83417199]
[1759435754383,0.1058978,120940.0,120930.0,0.83417199]
[1759435754587,0.4666978,120940.0,120930.0,0.83417199]
[1759435757883,0.02327,120940.0,120930.0,0.83417199]
[1759435758391,0.02327,120940.0,120930.0,0.89355948]
[1759435759292,0.02327,120940.0,120930.0,0.83417199]
[1759435759590,0.1058978,120940.0,120930.0,0.83417199]
[1759435760089,0.1058978,120940.0,120930.0,0.89357752]
[1759435760387,0.1058978,120940.0,120930.0,0.83417199]
[1759435760687,0.1058978,120940.0,120930.0,0.89359005]
[1759435765087,0.4666978,120940.0,120930.0,0.81096035]
[1759435765289,0.70112229,120940.0,120930.0,0.03449]
[1759435765593,0.38407,120940.0,120930.0,0.49359495]
[1759435768794,0.38407,120940.0,120930.0,0.17654266]
[1759435768994,0.38407,120940.0,120930.0,0.43417689]
[1759435770695,0.38407,120940.0,120930.0,0.1171246]
[1759435770892,0.38407,120940.0,120930.0,0.43417689]
[1759435771094,1.13703,120940.0,120930.0,0.43417689]
[1759435773494,1.13703,120940.0,120930.0,0.1171246]
[1759435773793,1.13703,120940.0,120930.0,0.43417689]